bitfinex/quotes_ETHUSD_20250909
["timestamp","ask_amount","ask_price","bid_price","bid_amount"]
[1757425371633,6.42371241,4351.2,4351.1,0.042]
[1757425371811,7.65371241,4351.2,4351.1,0.042]
[1757425372221,7.65371241,4351.2,4351.1,4.037]
[1757425373340,8.88371241,4351.2,4351.1,4.037]
[1757425373954,8.88371241,4351.2,4350.8,0.027]
[1757425374116,2.29853492,4350.6,4350.1,0.04]
[1757425374320,0.792,4350.2,4349.8,0.025]
[1757425374643,2.59170342,4349.9,4349.8,0.025]
[1757425375149,4.83940342,4349.9,4349.8,0.025]
[1757425375368,5.56260342,4349.9,4349.8,0.025]
[1757425375562,6.41754562,4349.9,4349.8,0.025]
[1757425376147,1.0789422,4349.9,4349.8,0.025]
[1757425376348,3.82170342,4349.9,4349.8,0.025]
[1757425376547,6.06940342,4349.9,4349.8,0.025]
[1757425376950,6.86140342,4349.9,4349.8,0.025]
[1757425377278,6.86140342,4349.9,4349.8,4.02]
[1757425377580,6.86140342,4349.9,4349.8,0.025]
[1757425377739,7.77742671,4349.9,4349.8,4.021]
[1757425378078,8.93862671,4349.9,4349.8,4.021]
[1757425378437,3.66882329,4349.9,4349.8,4.021]
[1757425378664,5.05170342,4349.9,4349.8,4.021]
[1757425378862,7.23060342,4349.9,4349.8,4.021]
[1757425379188,7.29940342,4349.9,4349.8,4.021]
[1757425379354,8.52940342,4349.9,4349.8,4.021]
[1757425379976,9.25260342,4349.9,4349.8,4.021]
[1757425380278,8.10884159,4349.9,4349.8,4.021]
[1757425380476,5.13794159,4349.9,4349.8,4.021]
[1757425380686,6.28170342,4349.9,4349.8,4.021]
[1757425381195,4.92,4349.9,4349.8,4.325]
[1757425381488,7.22250342,4349.9,4349.8,4.021]
[1757425381694,9.51320342,4349.9,4349.8,0.025]
[1757425381994,10.66040342,4349.9,4349.8,0.025]
[1757425382285,11.95632538,4349.9,4349.8,4.021]
[1757425382644,13.18632538,4349.9,4349.8,4.021]
[1757425382842,13.18632538,4349.9,4349.8,0.025]
[1757425383453,10.54042538,4349.9,4349.8,0.025]
[1757425384002,13.18632538,4349.9,4349.8,0.025]
[1757425384165,14.41632538,4349.9,4349.8,4.021]
[1757425384366,14.41632538,4349.9,4349.8,0.025]
[1757425385192,11.77042538,4349.9,4349.8,0.025]
[1757425385396,14.06112538,4349.9,4349.8,0.025]
[1757425385605,14.41632538,4349.9,4349.8,0.025]
[1757425385977,14.41552538,4349.9,4349.8,0.025]
[1757425386211,15.64552538,4349.9,4349.8,0.025]
[1757425386610,15.64552538,4349.9,4349.1,0.04]
[1757425386611,3.09095627,4349.8,4348.0,5.509]
[1757425386779,3.09095627,4349.8,4347.1,0.04]
[1757425386780,3.09164355,4348.5,4347.7,1.765]
[1757425386980,3.09874355,4348.5,4348.0,2.975]
[1757425387192,5.38944355,4348.5,4348.0,2.975]
[1757425387425,3.09874355,4348.5,4348.0,2.975]
[1757425387731,3.09164355,4348.5,4348.0,2.975]
[1757425387894,3.63076502,4348.5,4348.0,2.975]
[1757425388224,2.29964355,4348.5,4348.0,2.975]
[1757425388411,2.29964355,4348.5,4348.4,0.3011]
[1757425388618,2.29964355,4348.5,4348.4,0.002]
[1757425389294,0.792,4349.3,4348.4,4.2971]
[1757425389489,2.29964355,4348.5,4348.4,4.2971]
[1757425390037,0.792,4349.3,4348.4,0.3011]
[1757425390328,2.29964355,4348.5,4348.4,0.002]
[1757425390544,2.29960551,4348.6,4348.5,3.743]
[1757425391095,2.29949932,4348.8,4348.5,4.5082]
[1757425391398,2.29964355,4348.5,4348.4,0.002]
[1757425391724,0.792,4349.0,4348.5,0.4661]
[1757425391932,2.29959067,4348.6,4348.5,0.4661]
[1757425392089,2.29959067,4348.6,4348.5,0.7652]
[1757425392295,2.29959067,4348.6,4348.5,0.2991]
[1757425392649,0.025,4349.8,4348.5,3.7652]
[1757425392929,2.29939216,4349.0,4348.5,6.1053]
[1757425393092,2.32396529,4349.8,4348.5,6.1053]
[1757425393093,2.29949274,4348.8,4348.6,0.4661]
[1757425393297,2.29949274,4348.8,4348.7,0.2991]
[1757425393492,0.3837,4349.8,4348.7,3.1053]
[1757425393698,0.792,4349.5,4348.7,3.1053]
[1757425393898,0.792,4349.5,4348.7,0.2991]
[1757425394100,0.792,4349.5,4348.5,3.0]
[1757425394101,2.299547,4348.7,4348.5,3.0]
[1757425394646,2.299547,4348.7,4348.6,0.2991]
[1757425394951,1.83128798,4349.6,4348.7,3.0]
[1757425395155,2.29953779,4348.7,4348.6,3.996]
[1757425395340,2.29953779,4348.7,4348.6,4.2951]
[1757425395525,0.792,4349.3,4348.7,3.0]
[1757425395526,0.792,4349.2,4348.7,3.0]
[1757425395730,0.4505688,4349.5,4349.1,0.2991]
[1757425395944,0.4505688,4349.5,4349.2,3.996]
[1757425395945,0.792,4349.5,4349.2,3.996]
[1757425396256,0.792,4349.5,4349.1,2.0631]
[1757425396257,3.09127342,4349.2,4349.1,1.764]
[1757425396458,5.74347342,4349.2,4349.1,1.764]
[1757425396663,5.74347342,4349.2,4349.1,5.76]
[1757425397116,3.09487342,4349.2,4349.1,5.76]
[1757425397328,3.63427785,4349.2,4349.1,5.76]
[1757425397519,2.83867785,4349.2,4349.1,5.76]
[1757425397745,2.84227785,4349.2,4349.1,5.76]
[1757425397945,0.53940443,4349.2,4349.1,6.5252]
[1757425398147,3.09487342,4349.2,4349.1,1.764]
[1757425398334,3.09487342,4349.2,4349.1,5.76]
[1757425398858,3.09127342,4349.2,4349.1,5.76]
[1757425399576,3.09164355,4348.5,4348.4,1.766]
[1757425399776,3.41130791,4348.5,4348.4,5.762]
[1757425399919,1.10116436,4348.5,4348.4,8.762]
[1757425400120,2.2995164,4348.8,4348.5,3.0]
[1757425400344,2.29938188,4349.0,4348.7,3.2991]
[1757425400656,1.83128798,4349.6,4348.8,6.8022]
[1757425400657,2.29932775,4349.1,4348.8,6.8022]
[1757425400846,2.29932775,4349.1,4349.0,0.2991]
[1757425401221,2.29932775,4349.1,4349.0,0.7652]
[1757425401758,0.792,4349.5,4349.0,0.2991]
[1757425402058,0.2623288,4349.4,4349.1,0.4661]
[1757425402256,0.2623288,4349.4,4348.4,1.766]
[1757425402257,0.025,4349.8,4349.3,3.2991]
[1757425402518,0.025,4349.8,4349.4,6.2251]
[1757425402657,2.32395794,4349.8,4349.5,3.0]
[1757425402994,0.025,4349.8,4349.7,0.2991]
[1757425403208,0.025,4349.8,4349.7,10.1003]
[1757425403363,18.4492,4349.9,4349.7,10.1003]
[1757425403562,18.4492,4349.9,4349.8,3.0]
[1757425403762,18.4492,4349.9,4349.8,2.8062]
[1757425403962,18.4492,4349.9,4349.8,36.2197]
[1757425404409,18.4492,4349.9,4349.8,38.51865627]
[1757425404566,19.6792,4349.9,4349.8,36.2197]
[1757425405795,20.9092,4349.9,4349.8,36.2197]
[1757425406243,20.9092,4349.9,4349.8,38.51865627]
[1757425406568,20.9092,4349.9,4349.8,36.2197]
[1757425406965,20.9092,4349.9,4349.8,40.2137]
[1757425407197,22.1392,4349.9,4349.8,40.2137]
[1757425407969,22.1392,4349.9,4349.8,42.51265627]
[1757425408182,22.1392,4349.9,4349.8,40.2137]
[1757425408903,22.1392,4349.9,4349.8,42.51265627]
[1757425409507,22.1392,4349.9,4349.8,40.2137]
[1757425409672,22.1392,4349.9,4349.8,42.51265627]
[1757425409873,22.1392,4349.9,4349.8,42.81389011]
[1757425410405,23.3692,4349.9,4349.8,42.51265627]
[1757425410712,1e-08,4349.9,4349.8,43.88305998]
[1757425411002,0.001,4350.3,4350.2,6.09074488]
[1757425411315,0.025,4350.8,4350.7,6.0904807]
[1757425411498,0.025,4350.8,4350.7,43.21736739]
[1757425411702,0.025,4350.8,4350.7,46.22723726]
[1757425412082,0.0242,4350.8,4350.7,46.22723726]
[1757425412679,1e-08,4350.9,4350.8,36.90838443]
[1757425412914,0.025,4351.8,4351.7,3.08995252]
[1757425413128,0.025,4351.8,4351.7,44.86008636]
[1757425413428,0.025,4351.8,4351.7,47.75555623]
[1757425413570,0.025,4351.8,4351.7,46.38515252]
[1757425415498,0.025,4351.8,4351.7,47.17715252]
[1757425415702,0.025,4351.8,4351.7,47.47838636]
[1757425417078,0.025,4351.8,4351.7,47.47638636]
[1757425418207,0.025,4351.8,4351.7,47.17515252]
[1757425418523,0.025,4351.8,4351.7,46.38315252]
[1757425419929,0.025,4351.8,4351.7,47.36198636]
[1757425421432,0.025,4351.8,4351.7,47.59178636]
[1757425421740,0.025,4351.8,4351.7,47.36198636]
[1757425421935,0.025,4351.8,4351.7,43.37098636]
[1757425422236,0.025,4351.8,4351.7,44.11005252]
[1757425422436,0.025,4351.8,4351.7,41.8111]
[1757425422612,0.025,4351.8,4351.7,44.10905252]
[1757425424536,0.025,4351.8,4351.7,40.12005252]
[1757425424737,0.0286,4351.8,4351.7,34.056]
[1757425424938,2.89016,4351.8,4351.7,5.751]
[1757425425143,2.89116,4351.8,4351.7,5.751]
[1757425425308,2.89116,4351.8,4351.7,8.751]
[1757425425503,2.6383,4351.8,4351.7,8.751]
[1757425425907,0.026,4351.8,4351.7,38.751]
[1757425426203,0.026,4351.8,4351.7,41.35345252]
[1757425426409,0.026,4351.8,4351.7,41.65468636]
[1757425426632,0.026,4351.8,4351.7,41.35018636]
[1757425426937,0.026,4351.8,4351.7,41.65468636]
[1757425427138,0.026,4351.8,4351.7,44.27298636]
[1757425428253,0.026,4351.8,4351.7,45.34215623]
[1757425428455,0.001,4352.3,4351.9,0.792]
[1757425428771,0.001,4352.3,4352.2,2.29768852]
[1757425428958,0.001,4352.3,4352.2,40.68342236]
[1757425429162,0.001,4352.3,4352.2,43.30172236]
[1757425430070,0.001,4352.3,4352.2,43.57889223]
[1757425431660,1e-08,4352.9,4352.8,1.0218]
[1757425431847,1e-08,4352.9,4352.8,47.30694551]
[1757425432024,1e-08,4352.9,4352.8,47.58520564]
[1757425433338,1e-08,4352.9,4352.8,48.03553943]
[1757425433542,1e-08,4352.9,4352.8,47.75836956]
[1757425434677,1e-08,4352.9,4352.8,43.77136956]
[1757425434863,1e-08,4352.9,4352.8,47.75736956]
[1757425435038,1e-08,4352.9,4352.8,17.75736956]
[1757425435243,1e-08,4352.9,4352.8,47.75736956]
[1757425436163,1e-08,4352.9,4352.8,43.77136956]
[1757425436363,1e-08,4352.9,4352.8,47.75736956]
[1757425438382,0.02420001,4353.8,4353.7,2.29689689]
[1757425438561,0.02420001,4353.8,4353.7,43.33789689]
[1757425438880,2.28030001,4353.8,4353.7,43.33689689]
[1757425439681,0.02420001,4353.8,4353.7,39.4670649]
[1757425439980,0.02420001,4353.8,4353.7,44.44936861]
[1757425440186,0.02420001,4353.8,4353.7,14.44936861]
[1757425440387,0.02420001,4353.8,4353.7,14.14486861]
[1757425440688,0.02420001,4353.8,4353.7,43.86769874]
[1757425442095,0.02420001,4353.8,4353.7,47.89116861]
[1757425442295,1e-08,4353.9,4353.8,36.31864413]
[1757425442457,1e-08,4353.9,4353.8,45.27684784]
[1757425442656,1e-08,4353.9,4353.8,45.58614784]
[1757425442963,1e-08,4353.9,4353.8,48.59131449]
[1757425443153,0.025,4354.8,4354.7,2.29636943]
[1757425443358,0.025,4354.8,4354.7,43.33536943]
[1757425443677,2.6304,4354.8,4354.7,41.1534]
[1757425443886,2.6304,4354.8,4354.7,43.44976943]
[1757425444056,2.2742,4354.8,4354.7,43.44976943]
[1757425444257,2.2742,4354.8,4354.7,41.1534]
[1757425444582,0.0286,4354.8,4354.7,41.1534]
[1757425444885,2.2742,4354.8,4354.7,43.44976943]
[1757425445388,2.2742,4354.8,4354.7,41.1534]
[1757425445573,2.2742,4354.8,4354.7,43.44976943]
[1757425445778,2.2742,4354.8,4354.7,43.44876943]
[1757425445982,0.0286,4354.8,4354.7,43.44876943]
[1757425446484,0.0286,4354.8,4354.7,43.67846943]
[1757425446883,0.0286,4354.8,4354.7,41.3821]
[1757425447086,0.0286,4354.8,4354.7,43.67846943]
[1757425447389,0.0286,4354.8,4354.7,41.3821]
[1757425447614,0.0286,4354.8,4354.7,43.67846943]
[1757425447814,0.0286,4354.8,4354.7,41.1524]
[1757425448013,2.6304,4354.8,4354.7,41.1524]
[1757425450319,2.6304,4354.8,4354.7,38.1524]
[1757425450634,2.6304,4354.8,4354.7,41.1514]
[1757425451432,2.89744,4354.8,4354.7,38.744]
[1757425453030,2.89744,4354.8,4354.7,1.762]
[1757425453320,2.89744,4354.8,4354.7,5.744]
[1757425453825,2.89744,4354.8,4354.7,38.744]
[1757425453826,2.2742,4354.8,4354.7,38.744]
[1757425454118,2.2742,4354.8,4354.7,42.04247314]
[1757425454119,0.025,4354.8,4354.7,42.04247314]
[1757425454521,0.025,4354.8,4354.7,41.96287314]
[1757425454723,0.025,4354.8,4354.7,41.68570327]
[1757425454929,0.025,4354.8,4354.7,11.68570327]
[1757425455144,0.025,4354.8,4354.7,44.52470327]
[1757425455345,0.025,4354.8,4354.7,45.03157314]
[1757425455847,0.025,4354.8,4354.7,39.38833384]
[1757425456149,0.025,4354.8,4354.7,41.38346943]
[1757425456344,0.025,4354.8,4354.7,42.14596943]
[1757425456513,0.025,4354.8,4354.7,44.45216943]
[1757425456714,0.025,4354.8,4354.7,44.73423661]
[1757425456918,0.025,4354.8,4354.7,41.97483661]
[1757425457447,0.025,4354.8,4354.7,44.73423661]
[1757425458721,0.025,4354.8,4354.7,42.42803661]
[1757425459220,0.025,4354.8,4354.7,44.73423661]
[1757425459413,0.025,4354.8,4354.7,37.71176943]
[1757425459663,0.025,4354.8,4354.7,41.38246943]
[1757425460533,0.025,4354.8,4354.7,42.42703661]
[1757425460712,0.025,4354.8,4354.7,44.73323661]
[1757425461552,0.026,4354.8,4354.7,44.73323661]
[1757425462238,0.026,4354.8,4354.7,44.06175746]
[1757425462444,0.026,4354.8,4354.7,42.42703661]
[1757425463166,0.026,4354.8,4354.7,42.14496943]
[1757425463330,0.026,4354.8,4354.7,41.69076943]
[1757425463531,0.026,4354.8,4354.7,35.1061]
[1757425463875,2.2752,4354.8,4354.7,37.28806943]
[1757425464047,2.2752,4354.8,4354.7,41.26706943]
[1757425464246,0.0296,4354.8,4354.7,41.26706943]
[1757425464571,0.0252,4354.8,4354.7,41.26706943]
[1757425465177,0.0252,4354.8,4354.7,46.77106943]
[1757425465675,0.0252,4354.8,4354.7,42.79206943]
[1757425465876,0.0252,4354.8,4354.7,46.77106943]
[1757425466672,0.0288,4354.8,4354.7,44.4747]
[1757425466873,0.0288,4354.8,4354.7,46.77106943]
[1757425467181,0.0252,4354.8,4354.7,40.4957]
[1757425467479,2.6306,4354.8,4354.7,44.4737]
[1757425467644,0.0288,4354.8,4354.7,46.77006943]
[1757425468145,2.6306,4354.8,4354.7,14.4737]
[1757425468344,2.89766,4354.8,4354.7,44.4737]
[1757425468559,2.6306,4354.8,4354.7,40.4957]
[1757425468775,2.6306,4354.8,4354.7,44.4737]
[1757425469141,2.2744,4354.8,4354.7,44.4737]
[1757425469770,0.0252,4354.8,4354.7,46.77006943]
[1757425470369,0.3323,4354.8,4354.7,46.10852604]
[1757425470609,2.5779,4354.8,4354.7,44.4737]
[1757425470772,2.6336,4354.8,4354.7,40.4957]
[1757425470977,2.6336,4354.8,4354.7,44.4727]
[1757425471174,2.6336,4354.8,4354.7,14.4727]
[1757425471695,2.5779,4354.8,4354.7,14.243]
[1757425471884,2.5779,4354.8,4354.7,44.243]
[1757425472081,0.001,4355.3,4354.8,3.0]
[1757425472394,0.001,4355.3,4355.0,3.0]
[1757425472558,0.0567,4355.3,4355.2,3.0]
[1757425472890,0.001,4355.3,4355.2,3.977]
[1757425473097,0.0567,4355.3,4355.2,3.977]
[1757425474361,2.3889,4355.3,4355.2,3.977]
[1757425474975,2.63923,4355.3,4355.2,3.977]
[1757425477076,2.95853,4355.3,4355.2,3.977]
[1757425478385,2.95853,4355.3,4354.7,7.266]
[1757425478386,0.1144,4355.2,4354.7,7.266]
[1757425478589,0.4254,4354.8,4354.7,7.266]
[1757425478788,2.8648,4354.8,4354.7,11.242]
[1757425479319,3.15128,4354.8,4354.7,11.241]
[1757425479487,5.4475967,4354.8,4354.7,7.265]
[1757425479671,5.4475967,4354.8,4354.7,11.241]
[1757425479876,3.08846616,4354.6,4353.8,0.027]
[1757425480114,3.08846616,4354.6,4354.0,3.0]
[1757425480411,5.5780508,4354.5,4354.2,3.0]
[1757425480616,3.1386508,4354.5,4354.4,3.0]
[1757425480917,3.4496508,4354.5,4354.3,3.976]
[1757425481124,2.41098039,4354.3,4354.2,0.002]
[1757425481331,0.1144,4354.3,4354.2,0.002]
[1757425481615,0.4254,4354.3,4354.2,3.978]
[1757425481916,0.4254,4354.3,4354.2,6.978]
[1757425482886,0.1144,4354.3,4354.2,6.978]
[1757425483481,0.001,4355.3,4354.3,3.0]
[1757425483678,0.1144,4354.7,4354.5,3.0]
[1757425483905,0.1144,4354.7,4354.6,6.975]
[1757425484092,2.8648,4354.7,4354.6,6.975]
[1757425484277,2.8648,4354.7,4354.6,6.976]
[1757425484785,2.8648,4354.7,4354.6,6.975]
[1757425484985,2.7576,4354.7,4354.6,6.975]
[1757425485190,0.4254,4354.7,4354.6,6.975]
[1757425486219,0.4254,4354.7,4354.6,3.0]
[1757425486437,0.4254,4354.7,4354.6,6.975]
[1757425486781,0.1144,4354.7,4354.6,6.975]
[1757425487594,0.4233,4354.7,4354.6,6.975]
[1757425487988,2.7555,4354.7,4354.6,6.975]
[1757425488682,3.38079162,4354.7,4354.6,3.0]
[1757425488888,2.29658039,4354.3,4354.2,0.002]
[1757425489187,2.29658039,4354.3,4354.2,6.977]
[1757425489395,5.04698039,4354.3,4354.2,6.977]
[1757425489720,0.81354553,4354.3,4354.2,6.977]
[1757425489918,0.792,4355.1,4354.2,4.2724]
[1757425490231,2.29625624,4355.0,4354.2,0.002]
[1757425490381,2.29625624,4355.0,4354.3,3.974]
[1757425490583,2.29545624,4355.0,4354.3,3.974]
[1757425490809,0.792,4355.2,4354.3,3.974]
[1757425491006,2.61982119,4355.1,4354.3,3.974]
[1757425491223,0.305,4354.4,4354.3,3.974]
[1757425491408,2.4453,4355.0,4354.4,3.0]
[1757425491616,4.62841729,4355.0,4354.5,3.974]
[1757425491797,0.3193,4354.9,4354.5,3.974]
[1757425491996,0.099,4354.6,4354.5,6.974]
[1757425492438,2.3322,4355.1,4354.5,3.0]
[1757425492637,0.54212369,4355.1,4354.7,3.0]
[1757425492791,0.001,4355.3,4354.9,3.0]
[1757425493133,3.0881058,4355.2,4355.1,3.0]
[1757425493293,3.1871058,4355.2,4355.1,3.0]
[1757425493689,5.8364058,4355.2,4355.1,3.0]
[1757425493887,6.6497476,4355.2,4355.1,3.0]
[1757425494100,2.29626397,4354.9,4354.8,1.762]
[1757425494322,3.4413,4355.1,4354.9,3.0]
[1757425494523,2.7483,4355.0,4354.8,1.762]
[1757425494830,5.04451125,4355.0,4354.9,6.974]
[1757425495024,5.70959656,4355.0,4354.9,6.974]
[1757425495428,5.70959656,4355.0,4354.9,3.0]
[1757425495644,6.50159656,4355.0,4354.9,6.974]
[1757425495800,3.08826397,4354.9,4354.8,1.762]
[1757425496000,5.73536397,4354.9,4354.8,5.735]
[1757425496227,6.94806069,4354.9,4354.8,5.735]
[1757425497172,6.94806069,4354.9,4354.8,1.762]
[1757425497459,6.94806069,4354.9,4354.8,5.735]
[1757425497657,6.94806069,4354.9,4354.8,8.735]
[1757425497658,1.10939672,4354.9,4354.8,8.735]
[1757425497858,0.792,4355.2,4354.9,3.0]
[1757425498031,0.1075,4355.0,4354.9,3.0]
[1757425498854,2.29705905,4355.3,4354.9,3.0]
[1757425499057,2.29705905,4355.3,4355.1,3.0]
[1757425499260,2.29705905,4355.3,4354.8,1.762]
[1757425499261,0.099,4355.2,4354.8,1.762]
[1757425499462,0.1144,4355.0,4354.9,6.973]
[1757425499660,0.2156,4355.0,4354.9,6.973]
[1757425499961,2.51181125,4355.0,4354.9,6.973]
[1757425500158,5.63601125,4355.0,4354.9,3.0]
[1757425500362,6.79015606,4355.0,4354.9,6.973]
[1757425500521,1.84684481,4355.0,4354.9,6.973]
[1757425500719,0.792,4355.2,4355.0,3.0]
[1757425500923,0.4602959,4355.3,4355.1,3.972]
[1757425500924,0.001,4355.3,4355.1,3.972]
[1757425501123,2.2961058,4355.2,4355.1,3.972]
[1757425501343,2.29706371,4355.3,4355.1,3.972]
[1757425501560,0.099,4355.2,4355.1,3.972]
[1757425501759,0.33860637,4355.2,4355.1,3.972]
[1757425501923,0.001,4355.3,4355.1,3.972]
[1757425502322,0.001,4355.3,4355.2,3.7846]
[1757425502546,0.001,4355.3,4355.2,3.0]
[1757425502764,0.001,4355.3,4355.2,3.972]
[1757425503125,0.001,4355.3,4355.2,7.7566]
[1757425503326,0.001,4355.3,4355.2,10.1575]
[1757425504960,0.1394,4355.8,4355.3,3.0]
[1757425505144,0.1394,4355.8,4355.5,3.0]
[1757425505349,0.025,4355.8,4355.7,3.3122]
[1757425505565,0.025,4355.8,4355.7,3.971]
[1757425505724,0.025,4356.8,4355.8,3.0]
[1757425505926,0.1144,4356.1,4356.0,3.0]
[1757425506172,0.0894,4356.1,4356.0,10.1565]
[1757425506325,0.1144,4356.7,4356.1,33.0]
[1757425506521,0.1144,4356.7,4356.6,0.3122]
[1757425506837,2.31975011,4357.8,4356.6,0.3122]
[1757425506838,2.31975011,4357.8,4356.6,9.0452]
[1757425507039,0.46605501,4357.7,4356.7,3.4724]
[1757425507226,0.46605501,4357.7,4356.9,3.0]
[1757425507426,0.46605501,4357.7,4357.1,3.0]
[1757425507664,0.46605501,4357.7,4357.3,3.0]
[1757425507864,0.46605501,4357.7,4357.5,3.0]
[1757425508035,0.025,4357.8,4357.6,3.971]
[1757425508236,0.025,4357.8,4357.6,3.0]
[1757425508237,0.792,4357.7,4357.6,3.0]
[1757425508565,5.80548853,4357.7,4357.6,6.97]
[1757425509157,0.792,4357.5,4356.6,1.761]
[1757425509332,0.792,4356.8,4356.7,3.97]
[1757425509530,1.0797,4356.8,4356.7,3.97]
[1757425509840,1.41719309,4356.8,4356.7,3.97]
[1757425510053,1.0797,4356.8,4356.7,3.97]
[1757425510825,2.3008,4358.0,4356.7,9.6831]
[1757425511025,2.3008,4358.0,4356.8,3.0]
[1757425511349,0.23658,4357.7,4357.0,3.0]
[1757425511552,0.23658,4357.7,4357.2,3.0]
[1757425511760,0.23658,4357.7,4357.4,3.0]
[1757425511939,0.817,4357.8,4357.5,5.73]
[1757425512128,0.025,4357.8,4357.6,3.0]
[1757425512339,0.025,4357.8,4357.7,7.2812]
[1757425512633,0.003,4358.1,4357.7,7.7536]
[1757425512850,0.003,4358.1,4357.8,3.0]
[1757425513047,0.003,4358.1,4358.0,3.0]
[1757425513971,0.795,4358.1,4358.0,3.0]
[1757425514168,1.20295622,4358.1,4358.0,3.969]
[1757425514377,1.10395622,4358.1,4358.0,3.968]
[1757425514583,0.003,4358.1,4358.0,3.968]
[1757425515675,2.29757791,4358.1,4358.0,3.968]
[1757425515976,2.29757791,4358.1,4357.5,1.761]
[1757425515977,3.08684119,4357.6,4357.5,1.761]
[1757425516174,0.792,4356.9,4356.8,1.786]
[1757425516340,3.4992151,4356.9,4356.8,1.786]
[1757425516540,3.3959151,4356.9,4356.8,5.753]
[1757425516852,1.09990521,4356.9,4356.8,8.753]
[1757425517066,2.29508946,4357.2,4356.9,3.0]
[1757425517243,2.2950929,4357.2,4356.9,3.0]
[1757425517589,2.39415721,4357.0,4356.8,1.786]
[1757425517746,4.59600989,4356.9,4356.8,1.786]
[1757425518082,4.69720989,4356.9,4356.8,5.753]
[1757425518239,3.0956466,4356.9,4356.8,5.753]
[1757425518439,5.3964466,4356.9,4356.8,5.753]
[1757425518761,6.5033466,4356.9,4356.8,0.025]
[1757425519073,3.89323671,4356.9,4356.8,0.025]
[1757425519273,3.18840989,4356.9,4356.8,0.025]
[1757425519679,5.80410989,4356.9,4356.8,0.025]
[1757425520375,3.5089,4356.9,4356.8,0.025]
[1757425520552,5.80410989,4356.9,4356.8,0.025]
[1757425521536,5.80410989,4356.9,4356.8,0.027]
[1757425521742,3.08757871,4356.2,4356.1,0.04]
[1757425522251,5.80627871,4356.2,4356.1,0.04]
[1757425522482,3.37687871,4356.2,4356.1,0.04]
[1757425524991,5.80627871,4356.2,4356.1,0.04]
[1757425525208,0.792,4356.2,4356.1,0.04]
[1757425525478,0.09181398,4356.5,4356.1,3.2255]
[1757425525681,6.966,4357.7,4356.2,4.6343]
[1757425525880,2.29503872,4357.3,4356.3,3.0]
[1757425526038,1.24009317,4357.6,4356.5,3.0]
[1757425526240,2.29503065,4357.3,4356.7,3.0]
[1757425526475,2.29515841,4357.0,4356.7,3.0]
[1757425526785,2.29511721,4357.1,4356.7,3.0]
[1757425526986,0.22951172,4357.0,4356.7,3.0]
[1757425527143,0.792,4356.9,4356.7,3.0]
[1757425527348,0.792,4356.6,4356.2,1.761]
[1757425527544,0.792,4356.3,4356.2,5.727]
[1757425527765,3.08752601,4356.3,4356.2,5.727]
[1757425527962,3.62582189,4356.3,4356.2,5.726]
[1757425528192,3.72482189,4356.3,4356.2,1.761]
[1757425528397,1.33029588,4356.3,4356.2,5.726]
[1757425528601,1.33029588,4356.3,4356.2,8.9115]
[1757425528764,0.792,4356.9,4356.2,8.9115]
[1757425529084,0.22951172,4357.0,4356.2,8.9115]
[1757425529085,0.792,4356.7,4356.2,8.9115]
[1757425529246,0.792,4356.7,4356.3,2.8733]
[1757425529447,0.792,4356.5,4356.3,2.8733]
[1757425529647,3.20192601,4356.3,4356.2,1.761]
[1757425529892,3.20192601,4356.3,4356.2,5.726]
[1757425529893,1.48506558,4356.3,4356.2,5.726]
[1757425530091,3.78059159,4356.3,4356.2,5.726]
[1757425530273,1.48506558,4356.3,4356.2,5.726]
[1757425530495,3.78059159,4356.3,4356.2,5.726]
[1757425530697,1.48506558,4356.3,4356.2,5.726]
[1757425531000,0.9064,4356.3,4356.2,5.726]
[1757425531198,3.20192601,4356.3,4356.2,1.761]
[1757425531509,3.30092601,4356.3,4356.2,5.726]
[1757425531696,1.0054,4356.3,4356.2,5.726]
[1757425531898,3.30092601,4356.3,4356.2,5.726]
[1757425532104,3.86056402,4356.3,4356.2,5.726]
[1757425532419,3.86056402,4356.3,4356.1,0.04]
[1757425532420,3.08757871,4356.2,4356.1,0.04]
[1757425532718,8.13827871,4356.2,4356.1,0.04]
[1757425532914,8.23947871,4356.2,4356.1,0.04]
[1757425533070,10.05530389,4356.2,4356.1,0.04]
[1757425533275,5.00460389,4356.2,4356.1,0.04]
[1757425534409,7.63910389,4356.2,4356.1,0.04]
[1757425534610,10.05310389,4356.2,4356.1,0.04]
[1757425534814,3.08773681,4355.9,4355.8,1e-08]
[1757425535018,10.79127142,4355.9,4355.8,1e-08]
[1757425535177,13.52897142,4355.9,4355.8,1e-08]
[1757425535377,13.52897142,4355.9,4354.6,0.681]
[1757425535378,0.792,4355.1,4354.6,0.002]
[1757425535697,5.50226397,4354.9,4354.6,0.002]
[1757425535909,5.80806397,4354.9,4354.6,0.002]
[1757425536080,5.07370207,4354.9,4354.6,0.002]
[1757425536628,4.76790207,4354.9,4354.6,0.002]
[1757425537594,5.2093381,4354.9,4354.6,0.002]
[1757425537794,0.792,4354.5,4353.8,0.027]
[1757425538022,2.29642217,4354.6,4353.0,0.002]
[1757425538023,3.08900241,4353.5,4353.0,0.002]
[1757425538222,7.36070241,4353.5,4353.0,0.002]
[1757425538419,9.68030241,4353.5,4353.0,0.002]
[1757425538750,0.792,4353.5,4353.0,0.4701]
[1757425538967,0.792,4353.5,4353.4,0.7633]